Cogmind - Beta 16 @@@ ROGUE MODE // 2026.02.07 @ 16:18:07 Player: AlmondRoll Result: Destroyed by Y-72 Warden with Quantum Rifle Performance ------------- Evolutions (8) 4000 Regions Visited (20) 4000 Robots Destroyed (106) 530 Value Destroyed (2599) 2599 Prototype IDs (119) 2380 Alien Tech Used (6) 1200 Bonus (1600) 1600 TOTAL SCORE: 16309 Bonus ------- Registered with UFD 300 Met Optimus in HQ 500 Met Zhirov 300 Hacked Protovariant 500 Cogmind --------- Core Integrity 0/1450 Matter 41/300 Energy 75/100 System Corruption 36% Temperature Cool (9) Movement Core (50) Location -2/Protoforge Parts ------- > --- POWER (2) -------- (None) > --- PROPULSION (6) --- (None) > --- UTILITY (12) ----- (None) > --- WEAPON (3) ------- (None) > --- INVENTORY (5) ---- Improved Armor Integrity Analyzer Microactuators Nanoactuators Peak State ------------ > --- POWER ------------ Backup Power VII Graviton Reactor > --- PROPULSION ------- Improved Q-thruster Improved Q-thruster Cooled Q-thruster Cooled Q-thruster Cooled Q-thruster Cooled Q-thruster > --- UTILITY ---------- Coolant Network 2N-1CE's Frost Array Large Storage Unit Advanced Quantum Shading Machine Structural Scanner Advanced Sensor Array Experimental Signal Interpreter Layered Medium Armor Plating Advanced Hacking Suite Experimental Hacking Suite Advanced System Shield > --- WEAPON ----------- Sigix Broadsword Enhanced Force Lance > --- INVENTORY -------- Backup Power VII Cooled Q-thruster Energy Well Triangulator Improved Armor Integrity Analyzer Microactuators Nanoactuators Advanced Actuator Array Improved Phase Shifter Improved Utility Shielding Ghost Barrier Transdimensional Reconstructor Transdimensional Reconstructor Core Cannon [Rating: 202] Favorites ----------- Power Backup Power VII Engine Backup Power III Power Core Backup Power VII Reactor Graviton Reactor Propulsion VTOL Module Treads Light Treads Leg Aluminum Leg Wheel Compact Wheel Hover Unit Improved Linear Gravjet Flight Unit VTOL Module Utility Experimental Signal Interpreter Device Structural Scanner Storage Medium Storage Unit Processor Experimental Signal Interpreter Hackware Improved Hacking Suite Protection Improved Propulsion Shielding Artifact Phase Armor Weapon Force Lance Energy Gun EM Pulse Gun Energy Cannon Heavy Proton Cannon Ballistic Gun Assault Rifle Launcher Long-range Missile Launcher Special Weapon Remote Datajack Impact Weapon Flail Slashing Weapon Sigix Broadsword Piercing Weapon Force Lance Special Melee Weapon Improved Datajack Build | -11 -10 -10 -9 -9 -6 -6 -6 -5 -5 -5 -5 -4 -4 -4 -4 -3 -3 -2 -2 -2 ------- Run | Yrd Mat Sub Rec Scr Fac Was Fac Fac Upp Upp Zhi Pro Fac Was Fac Res Qua Res Tes Frg Slots Evolved 16 | . . . . . 8 . . 2 . . . . 2 . . 2 . 2 . . Power 1 | . . . . . 1 . . . . . . . . . . . . . . . Propulsion 4 | . . . . . 3 . . . . . . . 1 . . . . . . . Utility 10 | . . . . . 4 . . 2 . . . . 1 . . 2 . 1 . . Weapon 1 | . . . . . . . . . . . . . . . . . . 1 . . Parts Attached 198 | 4 4 6 3 7 17 1 13 20 . 2 2 2 23 2 24 10 8 22 24 4 Power 20 | . . 1 . 1 2 . . 2 . . . . 3 . 3 1 1 2 4 . Engine 5 | . . 1 . 1 1 . . . . . . . 1 . . 1 . . . . Core 10 | . . . . . 1 . . 2 . . . . 2 . 2 . 1 1 1 . Reactor 5 | . . . . . . . . . . . . . . . 1 . . 1 3 . Propulsion 50 | 2 . 2 2 2 5 . . 6 . . . 1 9 . 6 2 2 9 2 . Treads 2 | 2 . . . . . . . . . . . . . . . . . . . . Leg . | . . . . . . . . . . . . . . . . . . . . . Wheel 2 | . . 2 . . . . . . . . . . . . . . . . . . Hover 12 | . . . . . 1 . . 1 . . . . 9 . 1 . . . . . Flight 34 | . . . 2 2 4 . . 5 . . . 1 . . 5 2 2 9 2 . Utility 100 | 1 2 . . 3 8 1 11 10 . 2 2 1 8 2 12 7 3 8 15 4 Device 66 | 1 1 . . 1 4 1 7 6 . 2 1 1 4 2 10 6 1 4 10 4 Storage 10 | . 1 . . . 1 . 1 1 . . . . 2 . 1 . 1 . 2 . Processor 3 | . . . . 2 . . . 1 . . . . . . . . . . . . Hackware 10 | . . . . . 2 . . 2 . . . . 2 . 1 . . 1 2 . Protection 10 | . . . . . 1 . 3 . . . 1 . . . . 1 . 3 1 . Artifact 1 | . . . . . . . . . . . . . . . . . 1 . . . Weapon 28 | 1 2 3 1 1 2 . 2 2 . . . . 3 . 3 . 2 3 3 . Energy Gun 4 | . 1 1 . . . . . . . . . . . . . . . . 2 . Energy Cannon 3 | . . . . . . . . . . . . . 2 . . . . 1 . . Ballistic Gun 3 | 1 1 1 . . . . . . . . . . . . . . . . . . Ballistic Cannon . | . . . . . . . . . . . . . . . . . . . . . Launcher 2 | . . 1 . . . . . 1 . . . . . . . . . . . . Special Weapon 2 | . . . . . . . 1 . . . . . . . . . . . 1 . Impact Weapon 2 | . . . 1 . . . 1 . . . . . . . . . . . . . Slashing Weapon 3 | . . . . . . . . . . . . . 1 . 1 . 1 . . . Piercing Weapon 5 | . . . . . 1 . . 1 . . . . . . 1 . . 2 . . Special Melee Weapon 4 | . . . . 1 1 . . . . . . . . . 1 . 1 . . . Unidentified Prototypes 41 | . 1 . . . 2 . 1 3 . . 2 . 3 1 . . 4 5 14 5 Corrupted Parts 3 | . . . . . . . . . . . . . . . 1 . . . 2 . System Corruption 7 | . . . . . . . . . . . . . . . 2 . . . 5 . Parts Lost 79 | . . 6 1 . 5 . 6 3 . . . 3 19 1 8 1 1 3 2 20 Power 17 | . . 2 . . 1 . 2 . . . . 1 3 . 2 . . 1 2 3 Propulsion 27 | . . 2 . . 2 . 2 . . . . 1 9 . 3 . . . . 8 Utility 25 | . . . . . 2 . 1 3 . . . 1 4 1 2 1 1 1 . 8 Weapon 10 | . . 2 1 . . . 1 . . . . . 3 . 1 . . 1 . 1 Highest Loss Streak 13 | . . 5 1 . 3 . 5 2 . . . 2 11 1 3 1 1 1 2 13 To Critical Strikes . | . . . . . . . . . . . . . . . . . . . . . Average Backups 8 | 3 8 10 8 4 4 8 8 8 9 9 9 7 9 6 5 9 12 13 13 11 Power . | 1 1 . . . . . . . 1 1 1 . . . . 1 1 . . . Propulsion 1 | 1 3 4 3 . . . . . . . 1 . . 2 . . 1 1 1 1 Utility 5 | . 1 2 1 1 3 6 7 6 7 6 6 6 6 4 5 6 6 7 8 7 Weapon 1 | 1 2 2 1 1 1 1 1 1 1 1 1 1 1 . . . . 1 1 . Tool/Special . | . . . . . . . . . . . . . . . . . . . . . Unused Backups 24 | 4 3 1 1 2 . 1 3 . . . 1 . 1 2 . 1 . 2 . 2 Power 2 | . 1 1 . . . . . . . . . . . . . . . . . . Propulsion 8 | 4 . . 1 1 . . . . . . . . . 2 . . . . . . Utility 9 | . 2 . . 1 . 1 . . . . 1 . . . . 1 . 1 . 2 Weapon 4 | . . . . . . . 3 . . . . . 1 . . . . . . . Tool/Special 1 | . . . . . . . . . . . . . . . . . . 1 . . Average Slot Usage (%) 86 | . 100 92 73 79 90 93 91 81 100 100 99 97 70 52 79 85 85 86 94 71 Engine 3 | . 14 9 . 2 5 13 9 . . . . . . . 4 . . . . . Core 3 | . . . . . 4 . 3 4 11 11 11 10 4 5 1 7 9 7 3 1 Treads 3 | . 28 18 . . . . . . . . . . . . . . . . . . Wheel 1 | . . 6 25 . . . . . . . . . . . . . . . . . Hover 1 | . . . . . 3 . . . . . . . 10 5 5 . . . . . Flight 17 | . . . 2 28 23 26 25 20 29 29 29 28 7 . 15 18 19 17 26 20 Device 16 | . 14 14 15 22 15 6 12 17 23 23 21 15 11 16 15 22 19 22 24 18 Storage 5 | . 14 14 12 . 2 6 6 5 5 5 5 5 5 3 1 4 4 4 4 3 Processor 4 | . . . . 5 6 6 6 6 5 5 5 5 5 5 5 4 4 4 4 3 Hackware 10 | . . . . . 12 13 12 7 11 11 11 11 17 15 19 19 18 13 14 14 Protection 1 | . . . . . . 5 . 2 . . 1 5 2 . 2 . 4 6 3 1 Ballistic Gun 4 | . 28 22 12 . . . . . . . . . . . . . . . . . Impact Weapon 1 | . . . 1 14 4 . . . . . . . . . . . . . . . Piercing Weapon 2 | . . . . . . 6 6 4 5 5 5 5 1 . 3 4 3 1 3 1 Special Melee Weapon 1 | . . . . 5 6 6 3 . . . . . . . . . . 2 . . Peak Build Rating 202 | 7 9 8 7 18 58 59 69 87 81 82 89 83 114 66 93 121 154 189 202 200 Average Rating 72 | 6 7 7 6 8 53 56 59 61 81 81 82 78 77 60 76 113 125 165 190 141 On Entrance 69 | 6 7 8 7 6 18 57 59 47 81 81 82 83 78 49 57 75 121 147 187 195 Avg Prop Armor Cover (%) 7 | . . . 12 18 9 . . 5 . . . . 5 . 5 1 . 2 . . Naked Turns 40 | . . . . . . . . . . . . . . . . . . . . 40 Heaviest Build 72 | 12 47 50 45 7 26 22 26 38 31 31 34 35 35 23 33 39 50 72 71 67 Greatest Support 80 | 40 40 40 36 8 29 23 32 40 38 38 38 39 64 25 35 55 58 80 80 80 Greatest Overweight (x) 2 | . 1 1 2 1 . . . 2 . . . . 1 . . . . . 1 1 Average Overweight (x) . | . . 1 1 . . . . . . . . . . . . . . . . . Largest Inventory Capacity 20 | 8 20 20 20 5 10 10 10 10 10 10 10 10 10 10 10 10 15 15 15 15 Average Capacity 11 | 8 16 20 18 5 6 10 10 10 10 10 10 10 10 8 6 10 14 15 15 12 Most Carried 15 | 6 11 11 9 5 10 10 10 10 10 10 10 10 10 7 10 10 15 15 15 15 Average Carried 9 | 3 8 10 8 4 6 9 9 9 10 9 10 7 9 6 5 9 13 14 14 12 Final Capacity 20 | 8 20 20 5 5 10 10 10 10 10 10 10 10 10 5 10 10 15 15 15 5 Final Carried 15 | 3 11 8 4 5 10 10 9 10 10 10 10 7 7 5 10 9 15 15 15 3 Class Distribution -------------------- 25% | Hacker-Sprinter 21% | Mutant 13% | Hacker-Scout 13% | Hacker-Ninja 10% | Hacker-Mutant 4% | Scavenger-Mutant 3% | Sprinter Dominant Class ---------------- Mutant | -10/Materials Mutant | -10/Subcaves Mutant | -9/Recycling Scavenger-Mutant | -9/Scraptown Hacker-Scout | -6/Factory Hacker-Sprinter | -6/Waste Hacker-Scout | -6/Factory Sprinter | -5/Factory Hacker-Sprinter | -5/Upper Caves Hacker-Ninja | -5/Upper Caves Hacker-Ninja | -5/Zhirov Hacker-Scout | -4/Proximity Caves Hacker-Mutant | -4/Factory Hacker-Mutant | -4/Waste Hacker-Sprinter | -4/Factory Hacker-Sprinter | -3/Research Hacker-Ninja | -3/Quarantine Hacker-Ninja | -2/Research Hacker-Ninja | -2/Testing Mutant | -2/Protoforge Resources | -11 -10 -10 -9 -9 -6 -6 -6 -5 -5 -5 -5 -4 -4 -4 -4 -3 -3 -2 -2 -2 ----------- Run | Yrd Mat Sub Rec Scr Fac Was Fac Fac Upp Upp Zhi Pro Fac Was Fac Res Qua Res Tes Frg Matter Collected 3888 | 248 203 117 154 156 207 38 206 401 103 42 40 25 275 . 353 74 154 534 558 . Remotely . | . . . . . . . . . . . . . . . . . . . . . Salvage Created 5356 | 106 348 105 154 . 180 241 419 493 . 15 472 . 917 . 381 104 140 543 694 44 Parts 220 | 5 28 13 6 . 2 2 23 29 . 1 2 . 26 . 19 11 6 31 16 . Haulers Intercepted 6 | . 1 . . . . . 2 . . . . . 2 . . . . 1 . . Recyclers Shooed 9 | 1 2 . 1 . . . . 4 . . . . 1 . . . . . . . Parts Field Recycled . | . . . . . . . . . . . . . . . . . . . . . Retrieved Matter . | . . . . . . . . . . . . . . . . . . . . . Parts Self-Destructed 8 | . . 7 . . . . . . . . 1 . . . . . . . . . Prevented . | . . . . . . . . . . . . . . . . . . . . . Parts Restored . | . . . . . . . . . . . . . . . . . . . . . Kills | -11 -10 -10 -9 -9 -6 -6 -6 -5 -5 -5 -5 -4 -4 -4 -4 -3 -3 -2 -2 -2 ------- Run | Yrd Mat Sub Rec Scr Fac Was Fac Fac Upp Upp Zhi Pro Fac Was Fac Res Qua Res Tes Frg Combat Hostiles Destroyed 37 | . 9 5 1 . . . . 8 . . . . 2 . 4 . . . 8 . Melee 12 | . . . . . . . . . . . . . . . 4 . . . 8 . Guns 11 | . 9 1 1 . . . . . . . . . . . . . . . . . AOE 14 | . . 4 . . . . . 8 . . . . 2 . . . . . . . Classes Destroyed 14 | 2 4 2 1 . 1 . 2 . . . . . 1 . . . . . 1 . Worker 8 | . . . . . 1 . . 2 . . . . 2 . . . . . 3 . Builder 17 | . 2 . . . 1 . 3 3 . . . . . . . 3 . 5 . . Tunneler 2 | 1 . . . . . . . . . . . . . . 1 . . . . . Hauler 6 | . 1 . . . . . 2 . . . . . 2 . . . . 1 . . Recycler 15 | 1 1 . 1 . 1 . 1 2 . . . . 4 . 1 . 1 2 . . Mechanic 3 | . . . . . . . . . . . . . 1 . . . . 1 1 . Operator 4 | . . . . . . . 1 . . . . . 1 . . . 1 1 . . Turret 2 | . . 2 . . . . . . . . . . . . . . . . . . Watcher 12 | . . . . . . . 2 4 . . . . 2 . . 1 . . 2 1 Swarmer 22 | . 6 2 . . . . . 8 . . . . 2 . 2 . . . 2 . Grunt 6 | . 3 . . . . . . . . . . . . . 2 . . . 1 . Sentry 1 | . . . 1 . . . . . . . . . . . . . . . . . Programmer 5 | . . . . . . . . . . . . . . . . . . . 5 . Subdweller 3 | . . 3 . . . . . . . . . . . . . . . . . . Decomposer 1 | . . . . . . . . . . 1 . . . . . . . . . . Best Kill Streak 9 | 2 3 3 2 . 1 . 2 6 . . . . 4 . 3 1 2 3 9 1 Combat Bots Only 8 | . 3 3 1 . . . . 5 . . . . 2 . 2 . . . 8 . Max Kills in Single Turn 4 | 1 2 1 1 . 1 . 1 4 . 1 . . 1 . 1 1 1 1 1 1 Gunslinging 1 | . 1 . . . . . . . . . . . . . . . . . . . Exploded 4 | . . 1 . . . . . 4 . . . . 1 . . . . . . . Melee 1 | . . . . . . . . . . . . . . . 1 . . . 1 . Uniques/NPCs Destroyed . | . . . . . . . . . . . . . . . . . . . . . Combat | -11 -10 -10 -9 -9 -6 -6 -6 -5 -5 -5 -5 -4 -4 -4 -4 -3 -3 -2 -2 -2 -------- Run | Yrd Mat Sub Rec Scr Fac Was Fac Fac Upp Upp Zhi Pro Fac Was Fac Res Qua Res Tes Frg Hostile Shots Fired 971 | . 45 94 6 . 100 . 29 52 . 2 . 9 133 2 81 20 131 54 18 195 Missed 507 | . 13 44 3 . 57 . 16 30 . 2 . 4 55 1 36 17 103 31 9 86 Hits 464 | . 32 50 3 . 43 . 13 22 . . . 5 78 1 45 3 28 23 9 109 Melee 9 | . . . . . . . . . . . . . . 1 . . . . . 8 Projectile 455 | . 32 50 3 . 43 . 13 22 . . . 5 78 . 45 3 28 23 9 101 Critical Strikes 22 | . . . . . 2 . 1 1 . . . 1 3 1 1 1 . 1 1 9 Actively Blocked 4 | . . . . . . . . . . . . . . . . . . 1 . 3 Damage Taken 9843 | . 330 525 46 . 560 . 437 397 . . . 181 1779 41 955 61 483 642 524 2882 Core 3258 | . 84 107 . . 221 . 161 114 . . . . 612 41 393 . 86 44 25 1370 Absorbed by Shields 175 | . . . . . . . . . . . . . 35 . 20 . 11 . . 109 Redirected to Shielding 303 | . . . . . 22 . 29 31 . . . . . . 76 . . 30 . 115 Regen/Repaired (Parts) 1061 | . . . . . . . . . . . . . . . . 22 145 330 324 240 Core Remaining (%) 58 | 100 . . . 23 . . 55 . . . . 88 . . 9 . 78 . . . Volleys Fired 102 | 6 50 27 10 . . . . 5 . . . . 4 . . . . . . . Largest 2 | 2 2 2 2 . . . . 1 . . . . 1 . . . . . . . Hottest 60 | 40 40 60 60 . . . . 43 . . . . 43 . . . . . . . Shots Fired 178 | 12 99 45 13 . . . . 5 . . . . 4 . . . . . . . Gun 159 | 12 99 35 13 . . . . . . . . . . . . . . . . . Cannon . | . . . . . . . . . . . . . . . . . . . . . Launcher 19 | . . 10 . . . . . 5 . . . . 4 . . . . . . . Special . | . . . . . . . . . . . . . . . . . . . . . Kinetic 149 | 12 99 27 11 . . . . . . . . . . . . . . . . . Thermal . | . . . . . . . . . . . . . . . . . . . . . Explosive 19 | . . 10 . . . . . 5 . . . . 4 . . . . . . . Electromagnetic 10 | . . 8 2 . . . . . . . . . . . . . . . . . Robot Hit Streak 7 | 4 7 7 7 . . . . 2 . . . . . . . . . . . . Robot Miss Streak 7 | 2 7 4 1 . . . . . . . . . 1 . . . . . . . Penetration Max . | . . . . . . . . . . . . . . . . . . . . . Secondary Targets 1 | . 1 . . . . . . . . . . . . . . . . . . . Max Gunslinging Chain 1 | . 1 . . . . . . . . . . . . . . . . . . . Shots Hit Robots 242 | 8 53 23 10 . 5 11 19 21 . 1 7 . 26 . 11 5 3 14 23 2 Core Hits 135 | 3 25 23 6 . 1 2 9 18 . 1 3 . 15 . 8 3 2 4 12 . Critical Kills . | . . . . . . . . . . . . . . . . . . . . . Critical Parts Destroyed 2 | . . 1 . . 1 . . . . . . . . . . . . . . . Critical Strikes 20 | . . 1 . . 1 3 2 3 . . 2 . 3 . 3 . 1 . 1 . Destroy 1 | . . 1 . . . . . . . . . . . . . . . . . . Smash 1 | . . . . . 1 . . . . . . . . . . . . . . . Sever 2 | . . . . . . . . . . . . . . . 1 . . . 1 . Impale 16 | . . . . . . 3 2 3 . . 2 . 3 . 2 . 1 . . . Melee Attacks 362 | . . . . . 25 11 58 36 . 11 7 3 53 . 40 12 22 26 46 12 Impact 19 | . . . . . 19 . . . . . . . . . . . . . . . Slashing 100 | . . . . . . . . . . . . . 28 . 3 . 5 20 33 11 Piercing 238 | . . . . . 5 11 57 36 . 11 7 3 25 . 37 12 17 3 13 1 Sneak Attacks 53 | . . . . . 5 . 6 6 . 1 . . 11 . 2 3 1 12 5 1 Combat Hostiles . | . . . . . . . . . . . . . . . . . . . . . Follow-up Attacks 7 | . . . . . . . . . . . . . . . 1 . . . 6 . Damage Inflicted 13548 | 90 568 535 128 . 299 464 1210 1952 . 86 857 . 2108 . 530 326 204 1643 2219 329 Guns 994 | 90 562 214 128 . . . . . . . . . . . . . . . . . Cannons . | . . . . . . . . . . . . . . . . . . . . . Explosions 1684 | . . 321 . . . . 221 932 . . . . 210 . . . . . . . Melee 10813 | . . . . . 299 464 989 1020 . 86 857 . 1898 . 530 326 204 1643 2219 278 Ramming 57 | . 6 . . . . . . . . . . . . . . . . . . 51 Kinetic 924 | 90 562 168 104 . . . . . . . . . . . . . . . . . Thermal . | . . . . . . . . . . . . . . . . . . . . . Explosive 1684 | . . 321 . . . . 221 932 . . . . 210 . . . . . . . Electromagnetic 70 | . . 46 24 . . . . . . . . . . . . . . . . . Impact 215 | . . . . . 215 . . . . . . . . . . . . . . . Slashing 4860 | . . . . . . . . . . . . . 971 . 34 . . 1643 1934 278 Piercing 5738 | . . . . . 84 464 989 1020 . 86 857 . 927 . 496 326 204 . 285 . Highest Corruption 36 | . 4 4 4 4 . . 1 . . . . . 4 14 16 1 3 4 14 36 Average Corruption 5 | . 3 4 4 4 . . 1 . . . . . 1 11 15 1 1 2 9 18 Corruption Purged . | . . . . . . . . . . . . . . . . . . . . . Corruption Blocked . | . . . . . . . . . . . . . . . . . . . . . Effects 140 | . 18 8 9 14 . . 5 . . . . . 3 5 19 . 3 8 20 28 Message Errors 40 | . 10 2 5 4 . . . . . . . . . 2 4 . 1 2 5 5 Matter Fused 30 | . 2 4 . 3 . . 4 . . . . . . 2 5 . 1 1 4 4 Heat Flow Errors 12 | . 1 1 1 2 . . . . . . . . 1 . 2 . 1 . 3 . Energy Discharges 10 | . . . . 2 . . . . . . . . . 1 2 . . 2 . 3 Parts Rejected 3 | . 1 . . . . . . . . . . . . . 1 . . . . 1 Parts Fused 2 | . . . . . . . 1 . . . . . . . 1 . . . . . Data Loss (minor) 19 | . 3 . 1 1 . . . . . . . . 1 . 3 . . 2 5 3 Data Loss (major) 6 | . . . 1 2 . . . . . . . . 1 . 1 . . . 1 . Misfires 2 | . . 1 1 . . . . . . . . . . . . . . . . . Alerts 3 | . . . . . . . . . . . . . . . . . . 1 1 1 Misdirections 12 | . . . . . . . . . . . . . . . . . . . 1 11 Weapon Failures 1 | . 1 . . . . . . . . . . . . . . . . . . . Overload Shots . | . . . . . . . . . . . . . . . . . . . . . Overflow Damage 3255 | . . . . . 142 . 204 410 . . 463 . 661 . 96 58 . 650 418 153 Projectiles . | . . . . . . . . . . . . . . . . . . . . . Explosions 129 | . . . . . . . 62 11 . . . . 56 . . . . . . . Melee 3126 | . . . . . 142 . 142 399 . . 463 . 605 . 96 58 . 650 418 153 Knockbacks 1 | . 1 . . . . . . . . . . . . . . . . . . . Impact 1 | . 1 . . . . . . . . . . . . . . . . . . . Kinetic . | . . . . . . . . . . . . . . . . . . . . . Secondary . | . . . . . . . . . . . . . . . . . . . . . Self-Inflicted Damage 485 | . . 26 . . . . 268 70 . . . . 70 . . . . . . 51 Shots 6 | . . 1 . . . . 3 1 . . . . 1 . . . . . . . Rammed 4 | . 4 . . . . . . . . . . . . . . . . . . . Targets Rammed 5 | . 5 . . . . . . . . . . . . . . . . . . . Kicked . | . . . . . . . . . . . . . . . . . . . . . Crushed 1 | . 1 . . . . . . . . . . . . . . . . . . . Highest Temperature 338 | . 212 92 261 201 46 . 80 29 . . 35 62 338 . 221 11 230 206 234 94 Average Temperature 55 | . 48 27 136 100 12 . 19 11 . . 21 27 62 . 96 11 142 87 59 39 Received Heat Transfer 1261 | . 111 243 9 . 66 . 30 36 . . . 9 109 . 225 46 41 27 36 273 Effects 1 | . . . . . . . . . . . . . 1 . . . . . . . Short Circuit 1 | . . . . . . . . . . . . . 1 . . . . . . . Siege Activations . | . . . . . . . . . . . . . . . . . . . . . Martial Activations . | . . . . . . . . . . . . . . . . . . . . . Shielding Activations . | . . . . . . . . . . . . . . . . . . . . . Robots Disrupted . | . . . . . . . . . . . . . . . . . . . . . Combat Hostiles . | . . . . . . . . . . . . . . . . . . . . . Robots Corrupted 1 | . . . . . 1 . . . . . . . . . . . . . . . Combat Hostiles . | . . . . . . . . . . . . . . . . . . . . . Parts Fried 2 | . . . . . 2 . . . . . . . . . . . . . . . Impact Corruptions 5 | . . . . . 5 . . . . . . . . . . . . . . . Robots Melted . | . . . . . . . . . . . . . . . . . . . . . Combat Hostiles . | . . . . . . . . . . . . . . . . . . . . . Parts Melted . | . . . . . . . . . . . . . . . . . . . . . Heat Transferred . | . . . . . . . . . . . . . . . . . . . . . Parts Sabotaged . | . . . . . . . . . . . . . . . . . . . . . Parts Stolen . | . . . . . . . . . . . . . . . . . . . . . Parts Stripped . | . . . . . . . . . . . . . . . . . . . . . Power Chain Reactions . | . . . . . . . . . . . . . . . . . . . . . Alert | -11 -10 -10 -9 -9 -6 -6 -6 -5 -5 -5 -5 -4 -4 -4 -4 -3 -3 -2 -2 -2 ------- Run | Yrd Mat Sub Rec Scr Fac Was Fac Fac Upp Upp Zhi Pro Fac Was Fac Res Qua Res Tes Frg Maximum Alert Level 2 | . . . 2 . 2 1 . 1 . . . . . . . . . 1 1 2 Low Security (%) 82 | 100 100 . . . 51 90 100 73 . . . . 100 100 100 100 100 98 68 44 Level 1 13 | . . . 87 . 17 10 . 26 . . . . . . . . . 1 31 26 Level 2 4 | . . . 12 . 31 . . . . . . . . . . . . . . 28 Level 3 . | . . . . . . . . . . . . . . . . . . . . . Level 4 . | . . . . . . . . . . . . . . . . . . . . . Level 5 . | . . . . . . . . . . . . . . . . . . . . . High Security . | . . . . . . . . . . . . . . . . . . . . . Max Security . | . . . . . . . . . . . . . . . . . . . . . Peak Influence 596 | 5 119 . 424 . 596 204 85 283 . . . . 135 29 103 46 134 297 340 503 Initial 424 | . . . 424 . . 204 72 29 . . . . . 29 . . . 49 166 90 Average 113 | 1 34 . 334 . 250 158 34 130 . . . . 40 12 50 18 70 82 205 289 Influence Increases 6203 | 10 263 995 49 . 926 . 499 507 . . 15 15 505 . 280 132 304 519 461 723 Destroy 0b10 Robot/C 780 | . 180 80 20 . . . 60 160 . . . . 40 . 80 . . . 160 . Destroy 0b10 Robot/NC 350 | 10 20 . 5 . 15 . 45 55 . . 15 . 60 . 10 20 10 50 30 5 Destroy Leader 146 | . 32 . . . . . 18 28 . . . . 18 . 10 2 . 2 34 2 Successful Hack 503 | . . . 24 . 62 . 54 75 . . . . 52 . . 68 90 30 33 15 Disable Machine 360 | . . . . . 15 . 75 . . . . . 60 . . . 75 . 75 60 Anti-Garrison Action 800 | . . . . . 400 . . . . . . . . . . . . 200 . 200 Destroy Structure 414 | . 1 . . . 14 . 67 114 . . . . 110 . 30 12 24 27 9 6 Partial Spotted 675 | . . . . . 105 . 120 15 . . . . 30 . 60 30 15 75 90 135 Lose Combat Pursuer 2175 | . 30 915 . . 315 . 60 60 . . . 15 135 . 90 . 90 135 30 300 Influence Decreases 5760 | 10 263 110 701 233 342 480 543 314 124 129 15 15 422 83 278 134 216 310 597 441 Entered New Map 1553 | . . . 461 233 . 380 32 31 94 25 . . . 54 . 2 . 39 131 71 Time Decay 3261 | 10 263 60 230 . 282 100 391 253 30 104 15 5 296 10 177 122 206 251 286 170 Lost Part 636 | . . 50 10 . 50 . 60 10 . . . 10 126 . 60 10 10 20 20 200 Lost Ally 160 | . . . . . 10 . 60 20 . . . . . 19 41 . . . 10 . Purge Threat 150 | . . . . . . . . . . . . . . . . . . . 150 . Squads Dispatched 88 | . 2 . . . 15 . 12 9 . . . . 13 . 6 7 5 6 10 3 Investigation 44 | . . . . . 10 . 7 7 . . . . 6 . 3 3 2 4 1 1 Extermination 21 | . . . . . 2 . 3 1 . . . . 4 . 1 1 2 2 3 2 Reinforcement 19 | . 2 . . . 3 . 2 1 . . . . 3 . 2 3 1 . 2 . Assault 1 | . . . . . . . . . . . . . . . . . . . 1 . Garrison 3 | . . . . . . . . . . . . . . . . . . . 3 . Intercept . | . . . . . . . . . . . . . . . . . . . . . Searches Triggered . | . . . . . . . . . . . . . . . . . . . . . Unchained Authorized 2 | . . . . . . . . . . . . . . . . . 1 1 . . Construction Impeded 4 | . . . . . 1 . 1 1 . . . . . . . 1 . . . . Haulers Reinforced 3 | . . . . . . . . . . . . . 2 . . . . . 1 . Active Scanning Responses . | . . . . . . . . . . . . . . . . . . . . . Cargo Convoy Interrupts . | . . . . . . . . . . . . . . . . . . . . . Stealth | -11 -10 -10 -9 -9 -6 -6 -6 -5 -5 -5 -5 -4 -4 -4 -4 -3 -3 -2 -2 -2 --------- Run | Yrd Mat Sub Rec Scr Fac Was Fac Fac Upp Upp Zhi Pro Fac Was Fac Res Qua Res Tes Frg Distress Signals 16 | . . . . . 2 . 1 3 . . . . 1 . 2 1 1 . 2 3 Communications Jammed 16 | . . . . . . . . . . . . . . . 16 . . . . . Distress Signals 16 | . . . . . . . . . . . . . . . 16 . . . . . Times Spotted 437 | . 15 50 1 . 47 . 22 47 . 3 . 2 44 6 33 15 44 39 17 52 Peak Tracking Total 18 | . 4 4 1 . 11 . 8 10 . 3 . 1 9 6 8 8 17 18 8 14 Tactical Retreats 85 | . 1 4 . . 10 . 6 10 . 1 . 1 12 . 7 3 6 7 5 12 ECM-based Alert Blocks 156 | . . . . . 17 . 13 23 . 3 . . 25 . 12 5 11 20 6 21 Traps | -11 -10 -10 -9 -9 -6 -6 -6 -5 -5 -5 -5 -4 -4 -4 -4 -3 -3 -2 -2 -2 ------- Run | Yrd Mat Sub Rec Scr Fac Was Fac Fac Upp Upp Zhi Pro Fac Was Fac Res Qua Res Tes Frg Traps Triggered 26 | . 2 . . . 1 . 1 1 . . . . 6 . 3 . 2 . 1 9 Indirectly . | . . . . . . . . . . . . . . . . . . . . . Trap Hack Attempts 19 | . . . . . . . 19 . . . . . . . . . . . . . Triggered 1 | . . . . . . . 1 . . . . . . . . . . . . . Disarmed . | . . . . . . . . . . . . . . . . . . . . . Reprogrammed 1 | . . . . . . . 1 . . . . . . . . . . . . . Reused . | . . . . . . . . . . . . . . . . . . . . . Traps Extracted . | . . . . . . . . . . . . . . . . . . . . . Installed . | . . . . . . . . . . . . . . . . . . . . . Triggered . | . . . . . . . . . . . . . . . . . . . . . Machines | -11 -10 -10 -9 -9 -6 -6 -6 -5 -5 -5 -5 -4 -4 -4 -4 -3 -3 -2 -2 -2 ---------- Run | Yrd Mat Sub Rec Scr Fac Was Fac Fac Upp Upp Zhi Pro Fac Was Fac Res Qua Res Tes Frg Machines Disabled 26 | . . 2 . . 1 . 5 . . . . . 4 . . . 5 . 5 4 Max in Single Turn 2 | . . 2 . . 1 . 2 . . . . . 2 . . . 1 . 1 1 Garrison Access 6 | . . . . . 2 . . 1 . . . . . . . 1 . 1 . 1 Machines Repaired . | . . . . . . . . . . . . . . . . . . . . . Machines Dismantled . | . . . . . . . . . . . . . . . . . . . . . Machines Sabotaged . | . . . . . . . . . . . . . . . . . . . . . Overloaded Fab Kills . | . . . . . . . . . . . . . . . . . . . . . Hacking | -11 -10 -10 -9 -9 -6 -6 -6 -5 -5 -5 -5 -4 -4 -4 -4 -3 -3 -2 -2 -2 --------- Run | Yrd Mat Sub Rec Scr Fac Was Fac Fac Upp Upp Zhi Pro Fac Was Fac Res Qua Res Tes Frg Machines Accessed 145 | . 2 . 8 6 20 . 21 15 . . 4 . 15 . 6 8 11 10 10 9 Terminals 71 | . 2 . 5 . 7 . 10 7 . . . . 8 . 1 4 10 5 6 6 Fabricators 9 | . . . . . 1 . 3 2 . . . . 1 . 1 . . . 1 . Repair Stations 9 | . . . . . 1 . 1 2 . . . . . . 1 1 1 1 1 . Recycling Units 31 | . . . 3 . 8 . 7 3 . . . . 4 . 3 1 . 2 . . Scanalyzers 7 | . . . . . 1 . . . . . . . 1 . . 1 . 1 1 2 Garrison Access 8 | . . . . . 2 . . 1 . . . . 1 . . 1 . 1 1 1 Total Hacks 417 | . 5 . 18 35 52 . 53 35 . . 10 . 50 . 18 28 29 28 23 33 Successful 255 | . 2 . 8 35 28 . 28 18 . . 10 . 37 . 13 24 18 9 12 13 Failed 161 | . 3 . 10 . 24 . 25 17 . . . . 12 . 5 4 11 19 11 20 Catastrophic 24 | . 1 . 3 . 4 . 2 4 . . . . 3 . . . 2 . 2 3 Database Lockouts 1 | . . . . . . . . . . . . . 1 . . . . . . . Manual 146 | . 3 . . . 21 . 18 12 . . . . 22 . 9 11 13 14 7 16 Terminals 215 | . 5 . 12 . 22 . 27 20 . . . . 31 . 4 16 27 12 15 24 Fabricators 23 | . . . . . 3 . 7 4 . . . . 2 . 5 . . . 2 . Repair Stations 19 | . . . . . 1 . 1 3 . . . . . . 1 5 2 4 2 . Recycling Units 72 | . . . 6 . 17 . 18 6 . . . . 8 . 8 2 . 7 . . Scanalyzers 20 | . . . . . 4 . . . . . . . 4 . . 4 . 2 1 5 Garrison Access 23 | . . . . . 5 . . 2 . . . . 5 . . 1 . 3 3 4 Terminal Hacks 127 | . 2 . 5 35 8 . 10 6 . . 10 . 14 . 1 8 10 3 7 8 Record 45 | . . . . 34 . . . . . . 2 . . . . . 3 1 . 5 Part Schematic 5 | . . . . . . . . 1 . . 4 . . . . . . . . . Prototype ID Bank 13 | . . . 3 . 2 . 3 . . . 4 . 1 . . . . . . . Level Access Points 1 | . . . . . . . . . . . . . . . . 1 . . . . Branch Access Points 5 | . . . . . . . 1 1 . . . . 1 . . 1 . 1 . . Emergency Access Points 2 | . . . . . 1 . . . . . . . . . 1 . . . . . Machine Index 1 | . . . . . . . . . . . . . . . . 1 . . . . Terminal Index 5 | . . . . . 1 . 1 1 . . . . 1 . . . 1 . . . Recycling Unit Index 1 | . . . . . . . . . . . . . 1 . . . . . . . Alert Level 4 | . . . . . 1 . . . . . . . 1 . . . . . 2 . Unreport Threat 1 | . . . . . . . . . . . . . . . . . . . 1 . Locate Traps 15 | . . . . . . . 4 2 . . . . 2 . . 3 2 1 . 1 Dispatch Records 1 | . 1 . . . . . . . . . . . . . . . . . . . Maintenance Status 2 | . . . . . 1 . . . . . . . . . . . . . 1 . Patrol Status 2 | . . . . . . . . . . . . . 1 . . . 1 . . . Transport Status 1 | . . . . . . . . . . . . . 1 . . . . . . . Recall Investigation 2 | . . . . . 1 . . . . . . . . . . . 1 . . . Recall Extermination 2 | . . . . . . . . . . . . . 2 . . . . . . . Recall Reinforcements 2 | . 1 . . . . . . . . . . . . . . 1 . . . . Hauler Manifests 5 | . . . 1 . . . . . . . . . 1 . . . 1 . 2 . Registered Components 4 | . . . . . . . 1 1 . . . . 1 . . 1 . . . . Registered Prototypes 1 | . . . . . . . . . . . . . 1 . . . . . . . Zone Layout 4 | . . . 1 . 1 . . . . . . . . . . . 1 . . 1 Proto ID Catalog 2 | . . . . 1 . . . . . . . . . . . . . . . 1 Protovariant Controls 1 | . . . . . . . . . . . . . . . . . . . 1 . Fabricator Hacks 8 | . . . . . 1 . 2 2 . . . . 1 . 1 . . . 1 . Network Status 6 | . . . . . 1 . 2 . . . . . 1 . 1 . . . 1 . Load Schematic 1 | . . . . . . . . 1 . . . . . . . . . . . . Build 1 | . . . . . . . . 1 . . . . . . . . . . . . Repair Station Hacks 12 | . . . . . 1 . 1 1 . . . . . . 1 4 2 . 2 . Scan Component 3 | . . . . . . . . . . . . . . . . 1 1 . 1 . Repair 3 | . . . . . . . . . . . . . . . . 1 1 . 1 . Refit 6 | . . . . . 1 . 1 1 . . . . . . 1 2 . . . . Recycling Unit Hacks 21 | . . . 3 . 1 . 6 2 . . . . 4 . 3 1 . 1 . . Report Inventory 1 | . . . . . . . . . . . . . . . . . . 1 . . Retrieve Components 20 | . . . 3 . 1 . 6 2 . . . . 4 . 3 1 . . . . Scanalyzer 11 | . . . . . 4 . . . . . . . 2 . . 2 . . 1 2 Insert Component 1 | . . . . . . . . . . . . . . . . . . . . 1 Retrieve Study 10 | . . . . . 4 . . . . . . . 2 . . 2 . . 1 1 Garrison Access Hacks 2 | . . . . . . . . 1 . . . . . . . 1 . . . . Seal Access 2 | . . . . . . . . 1 . . . . . . . 1 . . . . Unauthorized Hacks 74 | . . . . . 13 . 9 6 . . . . 16 . 7 8 6 5 1 3 Terminals 36 | . . . . . 2 . 2 4 . . . . 11 . . 7 6 2 1 1 Track 16 | . . . . . . . . . . . . . 5 . . 4 5 1 . 1 Assimilate 4 | . . . . . 1 . . 2 . . . . . . . . . . 1 . Botnet 9 | . . . . . 1 . 2 . . . . . 4 . . 2 . . . . Disrupt 5 | . . . . . . . . 2 . . . . 1 . . . 1 1 . . Operators 2 | . . . . . . . . . . . . . 1 . . 1 . . . . Fabricators 7 | . . . . . 1 . 1 . . . . . 1 . 4 . . . . . Report 1 | . . . . . . . . . . . . . . . 1 . . . . . Prioritize 1 | . . . . . . . . . . . . . . . 1 . . . . . Liberate 2 | . . . . . . . 1 . . . . . . . 1 . . . . . Haulers 3 | . . . . . 1 . . . . . . . 1 . 1 . . . . . Repair Stations . | . . . . . . . . . . . . . . . . . . . . . Recycling Units 26 | . . . . . 8 . 6 2 . . . . 4 . 3 1 . 2 . . Reject 1 | . . . . . . . . . . . . . . . . . . 1 . . Fedlink 25 | . . . . . 8 . 6 2 . . . . 4 . 3 1 . 1 . . Scanalyzers 1 | . . . . . . . . . . . . . . . . . . . . 1 Researchers 1 | . . . . . . . . . . . . . . . . . . . . 1 Garrison Access 4 | . . . . . 2 . . . . . . . . . . . . 1 . 1 Jam 4 | . . . . . 2 . . . . . . . . . . . . 1 . 1 Data Cores Recovered 1 | . . . . . . . . . . . . . . . . . . 1 . . Used . | . . . . . . . . . . . . . . . . . . . . . Hacking Detections 93 | . 2 . 5 . 12 . 15 13 . . . . 8 . 1 5 9 8 8 7 Full Trace Events 14 | . 1 . . . . . 1 4 . . . . 2 . . 2 1 2 1 . Feedback Events 1 | . . . . . . . . . . . . . . . . 1 . . . . Corruption 1 | . . . . . . . . . . . . . . . . 1 . . . . Feedback Blocked . | . . . . . . . . . . . . . . . . . . . . . Robot Schematics Acquired 1 | . . . . . . . . . . . . . . . . . . . 1 . Robots Built . | . . . . . . . . . . . . . . . . . . . . . Authchips . | . . . . . . . . . . . . . . . . . . . . . Time . | . . . . . . . . . . . . . . . . . . . . . Total Robot Build Rating . | . . . . . . . . . . . . . . . . . . . . . Part Schematics Acquired 7 | . . . . . . . . 1 . . 4 . . . . . . . 2 . Parts Built 2 | . . . . . . . . 2 . . . . . . . . . . . . Authchips . | . . . . . . . . . . . . . . . . . . . . . Time 106 | . . . . . . . . 106 . . . . . . . . . . . . Total Part Build Rating 12 | . . . . . . . . 12 . . . . . . . . . . . . Part Studies Acquired 10 | . . . . . 4 . . . . . . . 2 . . 2 . . 1 1 Parts Repaired 3 | . . . . . . . . . . . . . . . . 1 1 . 1 . Time 63 | . . . . . . . . . . . . . . . . 10 22 . 31 . Parts Recycled . | . . . . . . . . . . . . . . . . . . . . . Recycled Matter . | . . . . . . . . . . . . . . . . . . . . . Retrieved Matter . | . . . . . . . . . . . . . . . . . . . . . Retrieved Components 35 | . . . 4 . 1 . 10 6 . . . . 7 . 6 1 . . . . Parts Scanalyzed 1 | . . . . . . . . . . . . . . . . . . . . 1 Part Schematics Acquired . | . . . . . . . . . . . . . . . . . . . . . Parts Damaged . | . . . . . . . . . . . . . . . . . . . . . Bothacking | -11 -10 -10 -9 -9 -6 -6 -6 -5 -5 -5 -5 -4 -4 -4 -4 -3 -3 -2 -2 -2 ------------ Run | Yrd Mat Sub Rec Scr Fac Was Fac Fac Upp Upp Zhi Pro Fac Was Fac Res Qua Res Tes Frg Used RIF Installer . | . . . . . . . . . . . . . . . . . . . . . Robots Hacked 4 | . . . . . 1 . 1 . . . . . . . . . . 2 . . Non-combat 4 | . . . . . 1 . 1 . . . . . . . . . . 2 . . Combat . | . . . . . . . . . . . . . . . . . . . . . Robot Hacks Applied 4 | . . . . . 1 . 1 . . . . . . . . . . 2 . . find_chute 1 | . . . . . 1 . . . . . . . . . . . . . . . find_recycling 2 | . . . . . . . 1 . . . . . . . . . . 1 . . find_station 1 | . . . . . . . . . . . . . . . . . . 1 . . Relay Couplers Released . | . . . . . . . . . . . . . . . . . . . . . Fabnet Peak Effective % . | . . . . . . . . . . . . . . . . . . . . . Robots Rewired . | . . . . . . . . . . . . . . . . . . . . . Allies Hacked . | . . . . . . . . . . . . . . . . . . . . . Hacks Repelled . | . . . . . . . . . . . . . . . . . . . . . Allies | -11 -10 -10 -9 -9 -6 -6 -6 -5 -5 -5 -5 -4 -4 -4 -4 -3 -3 -2 -2 -2 -------- Run | Yrd Mat Sub Rec Scr Fac Was Fac Fac Upp Upp Zhi Pro Fac Was Fac Res Qua Res Tes Frg Total Allies 11 | . . . . . 1 . 3 2 . . . . . 1 3 . . . 1 . Largest Group 3 | . . . . . 1 . 3 1 . . . . . 1 3 . . . 1 . Highest-Rated Group 141 | . . . . . 26 . 87 26 . . . . . 46 141 . . . 26 . Highest-Rated Ally 47 | . . . . . 26 . 29 26 . . . . . 46 47 . . . 26 . Total Orders . | . . . . . . . . . . . . . . . . . . . . . Ally Attacks 46 | . . . . . . . 31 . . . . . . 4 11 . . . . . Total Damage 849 | . . . . . . . 492 . . . . . . 109 248 . . . . . Kills 3 | . . . . . . . 3 . . . . . . . . . . . . . Allies Corrupted . | . . . . . . . . . . . . . . . . . . . . . Allies Melted 2 | . . . . . . . . . . . . 2 . . . . . . . . Intel | -11 -10 -10 -9 -9 -6 -6 -6 -5 -5 -5 -5 -4 -4 -4 -4 -3 -3 -2 -2 -2 ------- Run | Yrd Mat Sub Rec Scr Fac Was Fac Fac Upp Upp Zhi Pro Fac Was Fac Res Qua Res Tes Frg Active Infowar (turns) 8862 | 15 970 303 452 575 610 200 1080 470 67 458 87 163 840 74 481 306 428 526 562 195 Sensors 3705 | . . . . . 559 77 1019 87 . 336 87 98 222 . . . 199 391 554 76 Terrain 283 | . . . . . . . . 155 . . . . . . . 124 4 . . . Structural 6558 | . 460 303 452 575 578 . 569 382 67 458 87 163 675 74 91 199 357 382 548 138 Seismic 656 | 15 510 . 1 2 . . . . . 75 . . . . 53 . . . . . Triangulation 1758 | . . . . . . . . . . . . . . . 17 306 369 432 453 181 Cloaking 281 | . . . . . . . . . . . . . . . . 281 . . . . Jamming 523 | . . . . . . 12 166 . . . . . 30 . 315 . . . . . ECM 2848 | . . . . . 53 123 79 133 67 458 70 . 263 . 150 244 184 480 358 186 Robot Analysis Total . | . . . . . . . . . . . . . . . . . . . . . Derelict Logs Recovered 2 | . . . . 1 . . . . 1 . . . . . . . . . . . Drone Launches . | . . . . . . . . . . . . . . . . . . . . . Drone Recoveries . | . . . . . . . . . . . . . . . . . . . . . Exploration | -11 -10 -10 -9 -9 -6 -6 -6 -5 -5 -5 -5 -4 -4 -4 -4 -3 -3 -2 -2 -2 ------------- Run | Yrd Mat Sub Rec Scr Fac Was Fac Fac Upp Upp Zhi Pro Fac Was Fac Res Qua Res Tes Frg Turns Passed 9565 | 50 971 303 489 592 663 200 1160 640 67 458 87 163 877 74 497 306 428 545 636 359 Spaces Moved 18044 | 17 293 97 371 1558 1573 548 2828 1173 249 741 191 409 1640 89 962 736 819 1308 1289 1153 Core 137 | . . . 11 17 . . . 18 . . . . . . . . . . . 91 Treads 374 | 17 293 64 . . . . . . . . . . . . . . . . . . Legs . | . . . . . . . . . . . . . . . . . . . . . Wheels 390 | . . 33 357 . . . . . . . . . . . . . . . . . Hover 736 | . . . . . . . . . . . . . 577 89 70 . . . . . Flight 16407 | . . . 3 1541 1573 548 2828 1155 249 741 191 409 1063 . 892 736 819 1308 1289 1062 Fastest Speed 6 | 160 160 117 37 32 25 27 20 23 27 27 27 27 28 80 16 28 31 7 6 6 Average Speed 34 | 160 209 198 116 36 27 27 26 35 27 27 27 27 36 80 27 30 31 29 17 17 Slowest Speed 240 | 160 240 240 130 100 32 27 32 176 27 27 27 29 109 80 80 31 32 39 76 83 Overloaded Moves 890 | . . . . . . . 149 26 . . . . . . 14 . . 151 32 518 Propulsion Burnouts 3 | . . . . . . . . . . . . . . . . . . . . 3 Robots Hopped 72 | . . . . . 2 . 30 3 . . . . 2 . 2 9 8 5 2 9 Potential Cave-ins . | . . . . . . . . . . . . . . . . . . . . . Cave-ins Triggered . | . . . . . . . . . . . . . . . . . . . . . Teleports 4 | . . . . . . . . . . . . . . . . . 2 . . 2 Exploration Rate (%) 53 | 3 56 8 83 93 40 96 62 37 47 68 62 51 42 76 25 21 87 42 85 43 Regions Visited 20 Branch Regions 10 Pre-discovered Areas 1 | . . . . . 1 . . . . . . . . . . . . . . . Known Exits Taken 12 | . . . . 1 . . 1 1 1 1 1 1 . . 1 1 1 1 1 . Unknown Exits Taken 4 | 1 1 1 1 . . . . . . . . . . . . . . . . . Scrap Searched 13 | . . . . 5 . . . . 2 5 . 1 . . . . . . . . Spaces Dug 158 | . . . . . 14 . 29 20 . 9 . 3 37 . 14 6 12 9 3 2 Terrain Destroyed 322 | . . 36 . . 14 . 87 57 . 9 . 3 70 . 14 6 12 9 3 2 Melee 134 | . . . . . 14 . 29 13 . 9 . 3 20 . 14 6 12 9 3 2 Projectile . | . . . . . . . . . . . . . . . . . . . . . AOE 188 | . . 36 . . . . 58 44 . . . . 50 . . . . . . . Terrain Rammed 1 | . . . . . . . . . . . . . . . . . . . . 1 Walls Destroyed . | . . . . . . . . . . . . . . . . . . . . . Machines Disabled 1 | . . . . . . . . . . . . . . . . . . . . 1 Actions | -11 -10 -10 -9 -9 -6 -6 -6 -5 -5 -5 -5 -4 -4 -4 -4 -3 -3 -2 -2 -2 --------- Run | Yrd Mat Sub Rec Scr Fac Was Fac Fac Upp Upp Zhi Pro Fac Was Fac Res Qua Res Tes Frg Total 20463 | 29 557 166 417 1582 1752 574 3078 1307 248 977 209 451 1810 90 1133 786 934 1435 1646 1282 Wait 1260 | . 194 32 26 1 115 7 133 48 . 216 . 35 43 . 63 14 50 21 218 44 Move 17896 | 16 292 96 370 1557 1569 547 2775 1166 248 740 190 408 1636 88 957 719 804 1298 1284 1136 Hop 58 | . . . . . 2 . 22 3 . . . . 2 . 2 7 6 4 2 8 Pick Up 117 | . 7 2 3 7 9 4 4 2 . 3 2 . 9 . 12 8 11 19 8 7 Fast Attach 164 | 1 4 . 1 3 10 . 9 21 . 2 4 1 16 2 19 2 8 11 39 11 Attach 67 | . . 5 2 2 8 . 1 2 . . . 2 10 . 4 5 2 14 3 7 Detach 24 | . 1 . . . 3 . . 2 . . . . 6 . 3 1 1 4 2 1 Swap 127 | 3 1 4 1 3 5 2 24 9 . . 1 . 9 . 8 7 12 20 13 5 Drop 209 | 3 3 . 4 9 6 3 18 13 . 5 5 1 17 . 16 11 13 21 44 17 Fire 102 | 6 50 27 10 . . . . 5 . . . . 4 . . . . . . . Melee 342 | . . . . . 25 11 58 36 . 11 7 3 53 . 37 12 22 23 33 11 Ram 1 | . . . . . . . . . . . . . . . . . . . . 1 Kick . | . . . . . . . . . . . . . . . . . . . . . Crush 5 | . 5 . . . . . . . . . . . . . . . . . . . Escape Stasis 71 | . . . . . . . 15 . . . . . 5 . 12 . 5 . . 34 Rewire . | . . . . . . . . . . . . . . . . . . . . . Trap 19 | . . . . . . . 19 . . . . . . . . . . . . . Miscellaneous 1 | . . . . . . . . . . . . 1 . . . . . . . . Route ------- -11/Scrapyard -10/Materials (discovered 2 exits: [*Mat] / [*Sub]) -10/Subcaves -9/Recycling (discovered 2 exits: [*Fac] / *Scr) -9/Scraptown (discovered 2 exits: *Fac x2) -6/Factory -6/Waste -6/Factory (discovered 7 exits: *Fac x3 / *Low x2 / *Ext x2) -5/Factory (discovered 3 exits: *Fac / *Upp x2) -5/Upper Caves -5/Upper Caves -5/Zhirov -4/Proximity Caves -4/Factory (discovered 3 exits: *Res / *Upp x2) -4/Waste -4/Factory -3/Research (discovered 6 exits: *Res x3 / Arm / *Qua x2) -3/Quarantine -2/Research (discovered 3 exits: *Acc / *Tes x2) -2/Testing (discovered 3 exits: *Acc / *Sec / *Frg) -2/Protoforge History --------- Turn | Location | Event 19 | -11/Scrapyard | Discovered new exit (range 3) 51 | -11/Scrapyard | Entered Materials 316 | -10/Materials | Build established: Mutant 631 | -10/Materials | Discovered new exit (range 10) 996 | -10/Materials | Discovered new exit (range 7) 1022 | -10/Materials | Entered Subcaves 1023 | -10/Subcaves | Approached by a straggling Scientist 1072 | -10/Subcaves | Ambushed by Subdweller buried in earth 1216 | -10/Subcaves | Discovered new exit (range 13) 1225 | -10/Subcaves | Core integrity fell below 50% 1279 | -10/Subcaves | Lost 5 parts (1p2n2w) 1325 | -10/Subcaves | Entered Recycling 1722 | -9/Recycling | Discovered new exit (range 9) 1747 | -9/Recycling | Scanned before Scraplab entrance 1761 | -9/Recycling | Discovered new exit (range 11) 1765 | -9/Recycling | Entered Scraplab 1814 | -9/Recycling | Entered Scraptown 1922 | -9/Scraptown | Scanned Subdweller tech in exchange for log data 1923 | -9/Scraptown | Learned Research trap positions 1929 | -9/Scraptown | Discovered new exit (range 5) 1961 | -9/Scraptown | Visited SPCMW 1972 | -9/Scraptown | Visited Cyclists 1984 | -9/Scraptown | Heard Great Nut preacher, LISTEN AND RECITE! 1986 | -9/Scraptown | Visited CR-KLE's Repair Center 1994 | -9/Scraptown | Visited IN-MT5's Study 2003 | -9/Scraptown | Visited Supply Room 2014 | -9/Scraptown | Visited Cave Peace 2029 | -9/Scraptown | Visited Science Testing Area 2038 | -9/Scraptown | Visited UFD Registry 2038 | -9/Scraptown | Registered with UFD as "Autosink" 2055 | -9/Scraptown | Build established: Scavenger-Mutant 2057 | -9/Scraptown | Entered Cyclist Reading Room 2167 | -9/Scraptown | Visited Derelict Rescue Squad 2172 | -9/Scraptown | Found DRS Beacon 2192 | -9/Scraptown | Visited Abandonware Association 2197 | -9/Scraptown | Learned abandonware demo "REPAIR.EXE" 2197 | -9/Scraptown | Learned abandonware demo "MELTYB.EXE" 2205 | -9/Scraptown | Visited Science Guys 2265 | -9/Scraptown | Visited Scrapoid Research Area 2276 | -9/Scraptown | Visited DA-N13 Charitable Foundation 2279 | -9/Scraptown | Found DCF Scrap (26 items) 2297 | -9/Scraptown | Visited Junk Repository 2311 | -9/Scraptown | Visited Infowarlord's Domain 2313 | -9/Scraptown | Found Exp. Signal Interpreter 2345 | -9/Scraptown | Visited Scrapoid Pod Storage 2350 | -9/Scraptown | Visited Curators Association 2358 | -9/Scraptown | Visited Junk Cannon Lab 2387 | -9/Scraptown | Met Optimus 2387 | -9/Scraptown | Accepted into 0bPrime 2405 | -9/Scraptown | Discovered new exit (range 5) 2406 | -9/Scraptown | Identified exit to Factory 2406 | -9/Scraptown | Entered Factory 2406 | -6/Factory | Evolved 8 slots: Power x1, Propulsion x3, Utility x4 2429 | -6/Factory | Loaded intel: 8 recycling unit locations 2438 | -6/Factory | Learned location of Protoforge (-2) 2758 | -6/Factory | Build established: Hacker-Scout 2876 | -6/Factory | Discovered new exit (range 12) 3030 | -6/Factory | Lost 3 parts (1p1n1u) 3069 | -6/Factory | Manually triggered Chute Trap 3069 | -6/Factory | Sucked down chute 3069 | -6/Factory | Entered Waste 3069 | -6/Waste | The area was eerily silent 3139 | -6/Waste | Discovered new exit (range 12) 3158 | -6/Waste | Identified exit to Factory 3252 | -6/Waste | Build established: Hacker-Sprinter 3253 | -6/Waste | Found Prototype Launcher 3269 | -6/Waste | Entered Factory 3394 | -6/Factory | Identified exit to Lower Caves 3394 | -6/Factory | Identified exit to Extension 3492 | -6/Factory | Discovered new exit (range 12) 3572 | -6/Factory | Loaded intel: 8 recycling unit locations 3622 | -6/Factory | Discovered new exit (range 9) 4049 | -6/Factory | Build established: Hacker-Scout 4066 | -6/Factory | Discovered new exit (range 16) 4070 | -6/Factory | Identified exit to Factory 4429 | -6/Factory | Entered another Factory area 4429 | -5/Factory | Evolved 2 slots: Utility x2 4442 | -5/Factory | Lost 5 parts (2p2n1u) 4724 | -5/Factory | Spotted B-75 Beast 4731 | -5/Factory | Identified exit to Upper Caves 4838 | -5/Factory | Loaded intel: 8 recycling unit locations 4878 | -5/Factory | Fabricated Mic. Fission Core? 4888 | -5/Factory | Noticed UFD Elites at a Recycling Unit 4894 | -5/Factory | Found Prototype Hackware 4926 | -5/Factory | Lost 3 allies 4931 | -5/Factory | Identified Exp. Hacking Suite 4950 | -5/Factory | Discovered new exit (range 13) 4952 | -5/Factory | Identified exit to Factory 5069 | -5/Factory | Entered Upper Caves 5089 | -5/Upper Caves | Learned Factory stockpile data 5124 | -5/Upper Caves | Discovered new exit (range 13) 5125 | -5/Upper Caves | Encountered a Warlord checkpoint 5136 | -5/Upper Caves | Identified exit to Upper Caves 5136 | -5/Upper Caves | Entered another Upper Caves area 5231 | -5/Upper Caves | Build established: Hacker-Sprinter 5254 | -5/Upper Caves | Encountered a Warlord checkpoint 5564 | -5/Upper Caves | Build established: Hacker-Ninja 5592 | -5/Upper Caves | Discovered new exit (range 8) 5594 | -5/Upper Caves | Identified exit to Zhirov 5594 | -5/Upper Caves | Entered Zhirov 5594 | -5/Zhirov | Discovered new exit (range 3) 5599 | -5/Zhirov | Met Zhirov 5610 | -5/Zhirov | Zhirov requested help retrieving the SGEMP Prototype 5616 | -5/Zhirov | Found Alien Artifact 5616 | -5/Zhirov | Identified Integrated Reactor 5616 | -5/Zhirov | Installed Integrated Reactor, increased core energy generation (+10) 5681 | -5/Zhirov | Identified exit to Proximity Caves 5681 | -5/Zhirov | Entered Proximity Caves 5698 | -4/Proximity Caves | Spotted B-86 Titan 5782 | -4/Proximity Caves | Activated DRS Beacon 5841 | -4/Proximity Caves | Discovered exit to Factory (range 14) 5844 | -4/Proximity Caves | Entered Factory 5844 | -4/Factory | Evolved 2 slots: Propulsion x1, Utility x1 5909 | -4/Factory | Discovered new exit (range 3) 5921 | -4/Factory | Lost 5 parts (1p3n1u) 6055 | -4/Factory | Discovered new exit (range 11) 6112 | -4/Factory | Found Prototype Hackware 6112 | -4/Factory | Identified Exp. System Shield 6119 | -4/Factory | Loaded intel: 8 recycling unit locations 6145 | -4/Factory | Spotted B-86 Titan 6158 | -4/Factory | Central database locked down 6210 | -4/Factory | Build established: Hacker-Mutant 6448 | -4/Factory | Identified exit to Upper Caves 6718 | -4/Factory | Core integrity fell below 50% 6721 | -4/Factory | Sucked down chute 6721 | -4/Factory | Entered Waste 6722 | -4/Waste | Met a frightened Derelict 6736 | -4/Waste | EMP discharged 6736 | -4/Waste | System corruption reached 10% 6741 | -4/Waste | Spotted C-40 Crusher 6745 | -4/Waste | Spotted C-40 Crusher 6747 | -4/Waste | Lost 11 parts (6n3u2w) 6763 | -4/Waste | Spotted C-40 Crusher 6764 | -4/Waste | Spotted C-40 Crusher 6764 | -4/Waste | Spotted C-40 Crusher 6766 | -4/Waste | Spotted C-40 Crusher 6772 | -4/Waste | Crushed by Compactor (1 part destroyed, 1 dropped) 6788 | -4/Waste | Discovered new exit (range 10) 6794 | -4/Waste | Identified exit to Factory 6795 | -4/Waste | Entered Factory 6917 | -4/Factory | Lost 3 parts (1p1n1u) 7023 | -4/Factory | Core integrity fell below 20% 7117 | -4/Factory | Loaded intel: 8 recycling unit locations 7172 | -4/Factory | Build established: Hacker-Sprinter 7289 | -4/Factory | Discovered new exit (range 9) 7291 | -4/Factory | Identified exit to Research 7292 | -4/Factory | Entered Research 7292 | -3/Research | Evolved 2 slots: Utility x2 7293 | -3/Research | Loaded intel: 86 trap records 7313 | -3/Research | Identified exit to Armory 7313 | -3/Research | Identified exit to Quarantine 7313 | -3/Research | Identified exit to Research 7317 | -3/Research | Loaded intel: 5 recycling unit locations 7355 | -3/Research | Repaired VTOL Module+ 7399 | -3/Research | Spotted B-86 Titan 7598 | -3/Research | Entered Quarantine 7602 | -3/Quarantine | Spotted Alpha 7 7685 | -3/Quarantine | Found Alien Energy Cannon 7712 | -3/Quarantine | Found Alien Artifact 7776 | -3/Quarantine | Found Alien Artifact 7776 | -3/Quarantine | Identified Phase Armor 7818 | -3/Quarantine | Repaired Impulse Thruster Array+ 7886 | -3/Quarantine | Found Alien Artifact 7889 | -3/Quarantine | Found Alien Artifact 7905 | -3/Quarantine | Found Alien Artifact 7905 | -3/Quarantine | Identified Transdimensional Reconstructor (x3) 7905 | -3/Quarantine | Warped through subspace 7932 | -3/Quarantine | Found Alien Slashing Weapon 7932 | -3/Quarantine | Identified Sigix Broadsword 7964 | -3/Quarantine | Discovered exit to Research (range 12) 7976 | -3/Quarantine | Unchained authorized (CL-0N3) 8013 | -3/Quarantine | Found Alien Artifact 8013 | -3/Quarantine | Identified Hpw. Transdimensional Reconstructor 8013 | -3/Quarantine | Warped through subspace 8026 | -3/Quarantine | Entered Research 8026 | -2/Research | Evolved 2 slots: Utility x1, Weapon x1 8108 | -2/Research | Identified Core Cannon 8218 | -2/Research | Loaded intel: 5 recycling unit locations 8241 | -2/Research | Unchained authorized (CL-0N3) 8249 | -2/Research | Spotted B-90 Cyclops 8296 | -2/Research | Spotted B-90 Cyclops 8328 | -2/Research | Found Prototype Device 8328 | -2/Research | Identified Adv. EM Shield 8486 | -2/Research | K-01 Serf reconstituted as Combat Programmer 8486 | -2/Research | Spotted Combat Programmer 8554 | -2/Research | Discovered new exit (range 16) 8555 | -2/Research | Identified exit to Testing 8571 | -2/Research | Entered Testing 8639 | -2/Testing | Found Prototype Energy Gun 8639 | -2/Testing | Identified Hyp. EM Gauss Rifle 8653 | -2/Testing | Protovariant out of control (PP-UE0ARML0Q2) 8653 | -2/Testing | Unleashed a protovariant (PP-UE0ARML0Q2) 8655 | -2/Testing | Found Prototype Device 8655 | -2/Testing | Identified Exp. Thermal Shield 8667 | -2/Testing | Found Prototype Hackware 8679 | -2/Testing | Found Prototype Device 8679 | -2/Testing | Identified 2N-1CE's Frost Array 8712 | -2/Testing | Garrison activated, responded to threat 8762 | -2/Testing | Discovered new exit (range 13) 8764 | -2/Testing | Identified exit to Access 8795 | -2/Testing | Found Prototype Energy Gun 8795 | -2/Testing | Identified Tachyon Dispersion Ray 8802 | -2/Testing | Spotted PP-UE0ARML0Q2 8875 | -2/Testing | Build established: Hacker-Ninja 8997 | -2/Testing | Destroyed 8 combat bots 9004 | -2/Testing | System corruption reached 10% 9124 | -2/Testing | Identified Ghost Barrier 9156 | -2/Testing | Repaired Nanoactuators 9197 | -2/Testing | Spotted Fortress 9206 | -2/Testing | Discovered new exit (range 5) 9206 | -2/Testing | Discovered new exit (range 6) 9207 | -2/Testing | Identified exit to Section 7 9207 | -2/Testing | Identified exit to Protoforge 9207 | -2/Testing | Entered Protoforge 9215 | -2/Protoforge | Spotted Hotshot 9222 | -2/Protoforge | Superfortress began startup sequence 9241 | -2/Protoforge | Spotted B-90 Cyclops 9265 | -2/Protoforge | Spotted Hotshot 9266 | -2/Protoforge | Spotted Hotshot 9302 | -2/Protoforge | Found Prototype Device 9302 | -2/Protoforge | Identified Exp. System Purifier 9307 | -2/Protoforge | Found Prototype Device 9307 | -2/Protoforge | Identified Cep. Recoil Nullifier 9344 | -2/Protoforge | Spotted Decapitator 9344 | -2/Protoforge | Spotted Decapitator 9344 | -2/Protoforge | Spotted V509-o 9344 | -2/Protoforge | Spotted V733-s 9352 | -2/Protoforge | Found Prototype Device 9352 | -2/Protoforge | Identified Exp. Active Sensor Suite 9371 | -2/Protoforge | Spotted Immortal 9373 | -2/Protoforge | Spotted Immortal 9375 | -2/Protoforge | Found Prototype Device 9375 | -2/Protoforge | Identified Crosscalibrator 9386 | -2/Protoforge | Found Cep. Chromion Battery 9388 | -2/Protoforge | Found Prototype Device 9388 | -2/Protoforge | Identified Cep. Matter Streamer 9390 | -2/Protoforge | Spotted V227-j 9390 | -2/Protoforge | Spotted V451-t 9390 | -2/Protoforge | Spotted V747-u 9398 | -2/Protoforge | Spotted Decapitator 9398 | -2/Protoforge | Spotted Decapitator 9399 | -2/Protoforge | Spotted Immortal 9399 | -2/Protoforge | Spotted Immortal 9421 | -2/Protoforge | Spotted V819-k 9439 | -2/Protoforge | Spotted V857-p 9439 | -2/Protoforge | Spotted V695-q 9449 | -2/Protoforge | Spotted Decapitator 9449 | -2/Protoforge | Spotted Hotshot 9449 | -2/Protoforge | Spotted Decapitator 9457 | -2/Protoforge | Spotted V281-n 9457 | -2/Protoforge | Spotted V579-m 9457 | -2/Protoforge | Spotted Immortal 9457 | -2/Protoforge | Spotted Immortal 9477 | -2/Protoforge | Lost 5 parts (2p1n1u1w) 9494 | -2/Protoforge | System corruption reached 30% 9506 | -2/Protoforge | Spotted AP7-3 9506 | -2/Protoforge | Spotted AP7-3 9533 | -2/Protoforge | Additional patrols dispatched to research labs 9537 | -2/Protoforge | Core integrity fell below 50% 9544 | -2/Protoforge | Lost 13 parts (7n6u) 9561 | -2/Protoforge | Core integrity fell below 20% 9565 | -2/Protoforge | Warped through subspace 9566 | -2/Protoforge | Warped through subspace 9566 | -2/Protoforge | Destroyed by Y-72 Warden with Quantum Rifle Last Messages --------------- to Protoforge Zone 3C. 09531_ CX-V1P: "Oh no, you really shouldn't have this thing. That would not be good." 09532_ CX-V1P: "Not least of all because I'm close to achieving my goal of using it myself to finally escape this place." 09533_ CX-V1P: "Guards!" 09533_ ALERT: Tinkerer labs infiltrated, dispatching additonal patrols. 09540_ System corrupted: Component data lost. 09543_ Slug penetrates ATD Cell. 09550_ Penetrated by Slug. 09550_ Slug penetrates Machine. 09554_ Slug penetrates ATD Cell. 09554_ P-80 Master resets Y-72 Warden, system corruption cleaned. 09555_ BAAVAOO|NMQ1YC=DYBDKX%F==3EEOI6 09556_ Slug penetrates Reinforced Barrier. 09559_ Slug penetrates ATD Cell. 09562_ Slug penetrates Machine. 09563_ Penetrated by Slug. 09565_ Slug penetrates ATD Cell. 09565_ Warped through subspace. Map ----- +----------------------------------------------------+ | | | | | | | | | | | | | | | | | | | ?????????????????????????????????????????????????? | | ?????????????????????????????????????????????????? | | ?????????????????????????????????????????????????? | | ?????????????????????????????????????????????????? | | ?????????????????????????????????????????????????? | | ?????????????????????????????????????????????????? | | ?????????????####################????????????????? | | ?????????????# " """ " """"""#????????????????? | | ?????????????#""""#"!"#" """"""#????????????????? | | ?????????????# " " """ """#????????????????? | | ?????????????# "" "#?###????????????? | | ?????????????# # ### ############## | | ?????????????#""" Y ^ | | ?????????????#"!" / p | | ?????????????#""" Y / | | ?????????????# # #### ############## | | ?????????????# " """ @ """#?###????????????? | | ?????????????# "#"!"#"" """#????????????????? | | ?????????????# """ "" """""#????????????????? | | ?????????????######## "" T"""""#????????????????? | | ????????????????????# " """"""#????????????????? | | ????????????????????###########??????????????????? | | ?????????????????????????????????????????????????? | | ?????????????????????????????????????????????????? | | ?????????????????????????????????????????????????? | | ?????????????????????????????????????????????????? | | ?????????????????????????????????????????????????? | | ?????????????????????????????????????????????????? | | ?????????????????????????????????????????????????? | | ?????????????????????????????????????????????????? | | ?????????????????????????????????????????????????? | | ?????????????????????????????????????????????????? | | ?????????????????????????????????????????????????? | | ?????????????????????????????????????????????????? | | ?????????????????????????????????????????????????? | | ?????????????????????????????????????????????????? | | ?????????????????????????????????????????????????? | | ?????????????????????????????????????????????????? | | ?????????????????????????????????????????????????? | | ?????????????????????????????????????????????????? | | ?????????????????????????????????????????????????? | +----------------------------------------------------+ Best States ------------- Heat Dissipation 239 Coolant Potential 100 Energy Generation 53 Energy Capacity 410 Matter Stores 300 Matter Capacity 300 Sight Range 16 Robot Scan Range 16 Terrain Scan Range 24 Terrain Scan Density 85 ECM Strength 1 Jamming Range 16 Cloak Strength 3 Power Amplification 30 Additional Mass Support 25 Armor Coverage 225 Propulsion Shielding 66 Utility Shielding 66 Melee Speed Boost 50 Phase Shifting 10 Evasion (%) 85 Recoil Reduction 2 Offensive Hacking 42 Defensive Hacking 46 Item Schematics ----------------- Mic. Fission Core | -5/Factory | Hacked Assault Drone Bay | -5/Zhirov | Free Exp. Heat Sink | -5/Zhirov | Free Exp. Optical Array | -5/Zhirov | Free Imp. Arc Thrower | -5/Zhirov | Free Cld. Linear Gravjet | -2/Testing | Archive Com. Tesla Bomb Launcher | -2/Testing | Archive Robot Schematics ------------------ A-15 Conveyor | -2/Testing | Archive Fabricated ------------ Mic. Fission Core | x2 | -5/Factory Repaired ---------- VTOL Module | 12% | -3/Research Impulse Thruster Array | 53% | -3/Quarantine Nanoactuators | 60% | -2/Testing Studied --------- Hvy. Pick | -6/Factory | Hacked Nuclear Pulse Thruster | -6/Factory | Hacked VTOL Module | -6/Factory | Hacked Imp. Datajack | -6/Factory | Hacked Field Propulsion Drive | -4/Factory | Hacked Lgt. Fission Core | -4/Factory | Hacked Impulse Thruster Array | -3/Research | Hacked Force Lance | -3/Research | Hacked Enh. Force Lance | -2/Testing | Hacked Lgt. Antimatter Reactor | -2/Protoforge | Hacked Alien Tech Used ----------------- Integrated Reactor Phase Armor Transdimensional Reconstructor Sigix Broadsword High-powered Transdimensional Reconstructor Core Cannon Achievements -------------- A Problem For Future Me Bob, First Of His Name Construction Begets Destruction Express Service Fitting Room Hulk Smash I Laugh At Your Crits Item+ Junior Dev Not Today, Chutes Recruitment Drive Some Acronyms Are Better Than Others Super-what Now? The Better Part Of Valor UFD MVP Challenges ------------ None Game ------ Seed CompositeNodeDiverter Manual? 0 Play Time 05:52:07 Cumulative 439.6 hours Start 2026.02.05 @ 17:59:38 End 2026.02.07 @ 16:18:07 Sessions 3 Manual Loads 0 Difficulty Rogue Special Mode None Game No. 210 Rogue 210 Adventurer 0 Explorer 0 Win Type - Total 15 Types 8/0/5/2/0/0/0/0/0/0 Lore% 69 Gallery% 73 Achievement% 47 Wizard Run 0 Options --------- Layout 0 ASCII 0 Keyboard 0 Movement Numpad Keybinds 0 Fullscreen 1 Font 18/SmallcapsGlow Map View 76x50 Zoom Use 0% Tactical HUD 1 Map Filters NONE Filters NONE Steam 1 RUN: 0b2942ff-6af9-4f59-bdd7-178e39c14a97